[Event "FIDE World Rapid Chess Championship 2021"]
[White "Nakamura, Hikaru"]
[Black "Hovhannisyan, Robert"]
[WhiteFideId "2016192"]
[BlackFideId "13302507"]
[WhiteElo "2836"]
[BlackElo "2613"]
[Result "1-0"]
[Round "11"]
[TimeControl "900+10"]
[Date "2021.12.28"]
[WhiteClock "0:01:39"]
[BlackClock "0:00:46"]

1. Nf3 {[%clk 0:15:00]}  d5 {[%clk 0:15:00]} 2. g3 {[%clk 0:15:00]}  g6 {[%clk 0:15:00]} 3. Bg2 {[%clk 0:15:00]}  Bg7 {[%clk 0:15:00]} 4. d4 {[%clk 0:15:00]}  Nf6 {[%clk 0:15:00]} 5. c4 {[%clk 0:15:00]}  dxc4 {[%clk 0:15:00]} 6. O-O {[%clk 0:15:00]}  O-O {[%clk 0:15:00]} 7. Na3 {[%clk 0:15:00]}  c5 {[%clk 0:15:31]} 8. Nxc4 {[%clk 0:15:39]}  Be6 {[%clk 0:15:31]} 9. Nce5 {[%clk 0:15:39]}  Nbd7 {[%clk 0:15:31]} 10. Ng5 {[%clk 0:15:39]}  cxd4 {[%clk 0:13:15]} 11. Nxe6 {[%clk 0:14:50]}  fxe6 {[%clk 0:13:15]} 12. Nf3 {[%clk 0:14:50]}  e5 {[%clk 0:13:15]} 13. Qb3+ {[%clk 0:13:49]}  Kh8 {[%clk 0:10:10]} 14. Ng5 {[%clk 0:13:49]}  Qb6 {[%clk 0:10:10]} 15. Qxb6 {[%clk 0:12:22]}  axb6 {[%clk 0:09:49]} 16. Ne6 {[%clk 0:12:22]}  Rfb8 {[%clk 0:09:49]} 17. Bd2 {[%clk 0:10:51]}  Nc5 {[%clk 0:08:48]} 18. Nc7 {[%clk 0:10:51]}  Ra7 {[%clk 0:08:48]} 19. Rfc1 {[%clk 0:10:51]}  Nfe4 {[%clk 0:08:09]} 20. Be1 {[%clk 0:09:14]}  Nd6 {[%clk 0:08:09]} 21. Nd5 {[%clk 0:08:24]}  e4 {[%clk 0:05:50]} 22. Nxb6 {[%clk 0:08:24]}  Na4 {[%clk 0:05:50]} 23. Nxa4 {[%clk 0:08:24]}  Rxa4 {[%clk 0:05:50]} 24. b3 {[%clk 0:08:24]}  Ra6 {[%clk 0:05:43]} 25. a4 {[%clk 0:06:41]}  b5 {[%clk 0:05:43]} 26. Ra2 {[%clk 0:06:41]}  bxa4 {[%clk 0:03:47]} 27. bxa4 {[%clk 0:06:38]}  Bf6 {[%clk 0:03:47]} 28. a5 {[%clk 0:06:38]}  Kg7 {[%clk 0:03:47]} 29. Bf1 {[%clk 0:06:38]}  Rb3 {[%clk 0:03:47]} 30. Rd1 {[%clk 0:06:38]}  Nb5 {[%clk 0:03:47]} 31. Bg2 {[%clk 0:06:04]}  Nc3 {[%clk 0:02:28]} 32. Bxc3 {[%clk 0:06:04]}  dxc3 {[%clk 0:02:28]} 33. Bxe4 {[%clk 0:06:04]}  Rb2 {[%clk 0:02:28]} 34. Rxb2 {[%clk 0:04:36]}  cxb2 {[%clk 0:02:17]} 35. Rd7 {[%clk 0:04:36]}  Rxa5 {[%clk 0:01:49]} 36. Rb7 {[%clk 0:02:53]}  Kf7 {[%clk 0:01:49]} 37. e3 {[%clk 0:02:53]}  h5 {[%clk 0:01:49]} 38. h4 {[%clk 0:02:53]}  Ra4 {[%clk 0:01:49]} 39. Bd3 {[%clk 0:02:53]}  Bc3 {[%clk 0:01:49]} 40. Rb6 {[%clk 0:02:10]}  e6 {[%clk 0:00:57]} 41. Kg2 {[%clk 0:02:10]}  Rb4 {[%clk 0:00:57]} 42. Rc6 {[%clk 0:02:10]}  Be5 {[%clk 0:00:57]} 43. Bb1 {[%clk 0:02:10]}  Rb7 {[%clk 0:00:57]} 44. f4 {[%clk 0:02:10]}  Bf6 {[%clk 0:00:57]} 45. Kf3 {[%clk 0:02:10]}  Bg7 {[%clk 0:00:57]} 46. Ke2 {[%clk 0:02:10]}  Bf6 {[%clk 0:00:57]} 47. Ra6 {[%clk 0:01:27]}  Bg7 {[%clk 0:00:51]} 48. Ra3 {[%clk 0:01:27]}  Bf6 {[%clk 0:00:51]} 49. Rd3 {[%clk 0:01:27]}  Bg7 {[%clk 0:00:51]} 50. Rd8 {[%clk 0:01:27]}  Bf6 {[%clk 0:00:51]} 51. Rc8 {[%clk 0:01:27]}  Bg7 {[%clk 0:00:51]} 52. Kd2 {[%clk 0:01:27]}  Bf6 {[%clk 0:00:51]} 53. Kc2 {[%clk 0:01:27]}  Ra7 {[%clk 0:00:51]} 54. Rb8 {[%clk 0:01:27]}  Rc7+ {[%clk 0:00:51]} 55. Kd2 {[%clk 0:01:27]}  Rc1 {[%clk 0:00:51]} 56. Rb7+ {[%clk 0:01:27]}  Kg8 {[%clk 0:01:08]} 57. Bxg6 {[%clk 0:01:25]}  Rg1 {[%clk 0:01:08]} 58. Ke2 {[%clk 0:01:25]}  Bxh4 {[%clk 0:01:08]} 59. Bh7+ {[%clk 0:01:25]}  Kh8 {[%clk 0:01:08]} 60. gxh4 {[%clk 0:01:25]}  Rh1 {[%clk 0:01:08]} 61. Bc2 {[%clk 0:01:25]}  Rxh4 {[%clk 0:01:08]} 62. Rxb2 {[%clk 0:01:25]}  Rh2+ {[%clk 0:01:08]} 63. Kf3 {[%clk 0:01:25]}  h4 {[%clk 0:01:08]} 64. Rb8+ {[%clk 0:01:25]}  Kg7 {[%clk 0:01:08]} 65. Be4 {[%clk 0:01:25]}  Rh3+ {[%clk 0:00:46]} 66. Ke2 {[%clk 0:01:39]}  Rh2+ {[%clk 0:00:46]} 67. Kd3 {[%clk 0:01:39]}  h3 {[%clk 0:00:46]} 68. Rb7+ {[%clk 0:01:39]}  Kf6 {[%clk 0:00:46]} 69. Rh7 {[%clk 0:01:39]}  e5 {[%clk 0:00:46]} 70. fxe5+ {[%clk 0:01:39]}  Kxe5 {[%clk 0:00:46]} 71. Bc6 {[%clk 0:01:39]}  Kf6 {[%clk 0:00:46]} 72. Bd7 {[%clk 0:01:39]}  Rh1 {[%clk 0:00:46]} 73. Bxh3 {[%clk 0:01:39]}  Kg5 {[%clk 0:00:46]} 74. Bf5 {[%clk 0:01:39]} 1-0


[Site "http://www.Chess.com"]

[Event "FIDE World Rapid Chess Championship 2021"]
[White "Grischuk, Alexander"]
[Black "Alekseenko, Kirill"]
[WhiteFideId "4126025"]
[BlackFideId "4135539"]
[WhiteElo "2763"]
[BlackElo "2637"]
[Result "1-0"]
[Round "11"]
[TimeControl "900+10"]
[Date "2021.12.28"]
[WhiteClock "0:00:34"]
[BlackClock "0:00:23"]

1. c4 {[%clk 0:15:00]}  e5 {[%clk 0:15:00]} 2. g3 {[%clk 0:15:00]}  c6 {[%clk 0:15:00]} 3. d4 {[%clk 0:15:00]}  exd4 {[%clk 0:14:50]} 4. Qxd4 {[%clk 0:15:32]}  Nf6 {[%clk 0:14:50]} 5. Bg2 {[%clk 0:15:32]}  Na6 {[%clk 0:14:50]} 6. Nf3 {[%clk 0:15:32]}  Bc5 {[%clk 0:14:50]} 7. Qe5+ {[%clk 0:15:32]}  Be7 {[%clk 0:14:50]} 8. O-O {[%clk 0:15:32]}  O-O {[%clk 0:14:50]} 9. Nc3 {[%clk 0:15:32]}  Re8 {[%clk 0:14:50]} 10. Rd1 {[%clk 0:14:36]}  Bb4 {[%clk 0:15:15]} 11. Qf4 {[%clk 0:14:36]}  d6 {[%clk 0:14:03]} 12. Nd4 {[%clk 0:12:25]}  Nc5 {[%clk 0:07:06]} 13. Bd2 {[%clk 0:09:37]}  Ne6 {[%clk 0:06:34]} 14. Nxe6 {[%clk 0:09:37]}  Bxe6 {[%clk 0:06:34]} 15. Be1 {[%clk 0:06:47]}  Nh5 {[%clk 0:06:32]} 16. Qf3 {[%clk 0:06:47]}  Nf6 {[%clk 0:06:32]} 17. Qf4 {[%clk 0:06:47]}  Nh5 {[%clk 0:06:32]} 18. Qd4 {[%clk 0:05:00]}  Nf6 {[%clk 0:06:00]} 19. a3 {[%clk 0:03:57]}  Bc5 {[%clk 0:05:23]} 20. Qf4 {[%clk 0:03:57]}  Nh5 {[%clk 0:02:59]} 21. Qf3 {[%clk 0:02:24]}  Nf6 {[%clk 0:02:59]} 22. Qf4 {[%clk 0:02:24]}  Nh5 {[%clk 0:02:59]} 23. Qf3 {[%clk 0:02:24]}  Nf6 {[%clk 0:02:59]} 24. b4 {[%clk 0:02:24]}  Bb6 {[%clk 0:02:59]} 25. c5 {[%clk 0:02:24]}  Bc7 {[%clk 0:02:59]} 26. cxd6 {[%clk 0:02:24]}  Bxd6 {[%clk 0:02:59]} 27. b5 {[%clk 0:02:24]}  Rc8 {[%clk 0:02:38]} 28. bxc6 {[%clk 0:02:14]}  bxc6 {[%clk 0:02:38]} 29. Qd3 {[%clk 0:02:14]}  Be5 {[%clk 0:02:38]} 30. Qxd8 {[%clk 0:02:14]}  Rexd8 {[%clk 0:01:55]} 31. Rxd8+ {[%clk 0:00:54]}  Rxd8 {[%clk 0:01:55]} 32. Rc1 {[%clk 0:00:54]}  c5 {[%clk 0:01:55]} 33. Na4 {[%clk 0:00:54]}  c4 {[%clk 0:01:55]} 34. Nc5 {[%clk 0:00:54]}  Bb2 {[%clk 0:01:55]} 35. Nxe6 {[%clk 0:00:54]}  fxe6 {[%clk 0:01:55]} 36. Rxc4 {[%clk 0:00:54]}  Rd1 {[%clk 0:01:03]} 37. Kf1 {[%clk 0:00:45]}  Bxa3 {[%clk 0:01:03]} 38. e3 {[%clk 0:00:45]}  Rb1 {[%clk 0:01:03]} 39. Ke2 {[%clk 0:00:45]}  Rb2+ {[%clk 0:01:03]} 40. Kd3 {[%clk 0:00:45]}  Rb3+ {[%clk 0:01:03]} 41. Rc3 {[%clk 0:00:45]}  Rxc3+ {[%clk 0:01:03]} 42. Bxc3 {[%clk 0:00:45]}  Bc5 {[%clk 0:01:03]} 43. h3 {[%clk 0:00:45]}  Kf7 {[%clk 0:01:03]} 44. f4 {[%clk 0:00:45]}  Nd5 {[%clk 0:01:03]} 45. Bd2 {[%clk 0:00:45]}  Bb6 {[%clk 0:00:32]} 46. Bf3 {[%clk 0:00:30]}  Ne7 {[%clk 0:00:32]} 47. Bd1 {[%clk 0:00:30]}  Nd5 {[%clk 0:00:32]} 48. Bb3 {[%clk 0:00:30]}  g6 {[%clk 0:00:32]} 49. g4 {[%clk 0:00:30]}  Bc7 {[%clk 0:00:32]} 50. f5 {[%clk 0:00:30]}  gxf5 {[%clk 0:00:32]} 51. gxf5 {[%clk 0:00:30]}  Kf6 {[%clk 0:00:32]} 52. fxe6 {[%clk 0:00:30]}  Ne7 {[%clk 0:00:32]} 53. Ke4 {[%clk 0:00:42]}  Ng6 {[%clk 0:00:16]} 54. Bc3+ {[%clk 0:00:42]}  Ke7 {[%clk 0:00:14]} 55. Kf5 {[%clk 0:00:42]}  Nh4+ {[%clk 0:00:14]} 56. Kg5 {[%clk 0:00:42]}  Nf3+ {[%clk 0:00:14]} 57. Kg4 {[%clk 0:00:42]}  Ne5+ {[%clk 0:00:14]} 58. Kf5 {[%clk 0:00:42]}  Ng6 {[%clk 0:00:14]} 59. Bb4+ {[%clk 0:00:42]}  Bd6 {[%clk 0:00:14]} 60. Bxd6+ {[%clk 0:00:42]}  Kxd6 {[%clk 0:00:14]} 61. Kf6 {[%clk 0:00:42]}  a5 {[%clk 0:00:14]} 62. e4 {[%clk 0:00:34]}  Ne5 {[%clk 0:00:23]} 63. Ba4 {[%clk 0:00:34]}  Ng6 {[%clk 0:00:23]} 64. h4 {[%clk 0:00:34]} 1-0


[Site "http://www.Chess.com"]

[Event "FIDE World Rapid Chess Championship 2021"]
[White "Aronian, Levon"]
[Black "Mitrabha, Guha"]
[WhiteFideId "13300474"]
[BlackFideId "5057000"]
[WhiteElo "2728"]
[BlackElo "2107"]
[Result "1-0"]
[Round "11"]
[TimeControl "900+10"]
[Date "2021.12.28"]
[WhiteClock "0:05:19"]
[BlackClock "0:01:02"]

1. e4 {[%clk 0:15:00]}  c6 {[%clk 0:15:00]} 2. d4 {[%clk 0:15:00]}  d5 {[%clk 0:15:00]} 3. exd5 {[%clk 0:15:00]}  cxd5 {[%clk 0:15:00]} 4. Bd3 {[%clk 0:15:00]}  Nc6 {[%clk 0:15:00]} 5. c3 {[%clk 0:15:00]}  Nf6 {[%clk 0:15:00]} 6. Bf4 {[%clk 0:15:00]}  Bg4 {[%clk 0:15:00]} 7. Qb3 {[%clk 0:15:00]}  Qd7 {[%clk 0:15:00]} 8. Nd2 {[%clk 0:15:00]}  e6 {[%clk 0:15:00]} 9. Ngf3 {[%clk 0:15:00]}  Bd6 {[%clk 0:15:00]} 10. Bxd6 {[%clk 0:15:00]}  Qxd6 {[%clk 0:15:00]} 11. O-O {[%clk 0:15:00]}  O-O {[%clk 0:16:52]} 12. Rfe1 {[%clk 0:16:02]}  Bxf3 {[%clk 0:16:52]} 13. Nxf3 {[%clk 0:16:02]}  Qc7 {[%clk 0:16:52]} 14. a4 {[%clk 0:16:02]}  g6 {[%clk 0:16:52]} 15. g3 {[%clk 0:16:02]}  Rab8 {[%clk 0:16:52]} 16. Kg2 {[%clk 0:16:02]}  a6 {[%clk 0:16:52]} 17. Qd1 {[%clk 0:16:02]}  b5 {[%clk 0:16:40]} 18. b4 {[%clk 0:15:35]}  Ne7 {[%clk 0:16:40]} 19. Rc1 {[%clk 0:15:35]}  Nc8 {[%clk 0:16:40]} 20. axb5 {[%clk 0:15:35]}  axb5 {[%clk 0:16:40]} 21. Nd2 {[%clk 0:15:35]}  Nd6 {[%clk 0:16:40]} 22. Qf3 {[%clk 0:15:35]}  Kg7 {[%clk 0:16:40]} 23. Nb3 {[%clk 0:15:35]}  Nc4 {[%clk 0:15:16]} 24. Nc5 {[%clk 0:16:15]}  Rbe8 {[%clk 0:15:16]} 25. Ra1 {[%clk 0:16:15]}  Nd7 {[%clk 0:15:16]} 26. Ra6 {[%clk 0:16:02]}  Ra8 {[%clk 0:12:23]} 27. Rxa8 {[%clk 0:16:02]}  Rxa8 {[%clk 0:12:23]} 28. Bxc4 {[%clk 0:16:02]}  Nxc5 {[%clk 0:12:03]} 29. Bxd5 {[%clk 0:14:16]}  Nd3 {[%clk 0:12:03]} 30. Qxd3 {[%clk 0:14:16]}  exd5 {[%clk 0:12:03]} 31. Qxb5 {[%clk 0:14:14]}  Qxc3 {[%clk 0:09:47]} 32. Qxd5 {[%clk 0:14:14]}  Qxe1 {[%clk 0:09:33]} 33. Qxa8 {[%clk 0:12:43]}  Qxb4 {[%clk 0:09:33]} 34. Qd5 {[%clk 0:12:43]}  Kg8 {[%clk 0:09:33]} 35. Qe5 {[%clk 0:12:43]}  Qc3 {[%clk 0:09:33]} 36. Qe8+ {[%clk 0:12:43]}  Kg7 {[%clk 0:09:33]} 37. Qe4 {[%clk 0:12:43]}  Qc4 {[%clk 0:08:04]} 38. Qe5+ {[%clk 0:12:14]}  Kg8 {[%clk 0:08:04]} 39. d5 {[%clk 0:12:11]}  Qb5 {[%clk 0:05:56]} 40. Qd6 {[%clk 0:12:11]}  Qb1 {[%clk 0:05:56]} 41. Qe5 {[%clk 0:10:11]}  Qb5 {[%clk 0:05:17]} 42. Qd4 {[%clk 0:10:11]}  Qb7 {[%clk 0:05:17]} 43. Qc5 {[%clk 0:10:11]}  Qb1 {[%clk 0:05:17]} 44. d6 {[%clk 0:09:18]}  Qe4+ {[%clk 0:04:55]} 45. Kf1 {[%clk 0:09:18]}  Qe6 {[%clk 0:04:03]} 46. Qc7 {[%clk 0:07:31]}  Qe5 {[%clk 0:02:12]} 47. Qe7 {[%clk 0:07:06]}  Qb5+ {[%clk 0:02:12]} 48. Kg1 {[%clk 0:07:06]}  Qb1+ {[%clk 0:01:02]} 49. Kg2 {[%clk 0:05:19]}  Qc2 {[%clk 0:01:02]} 50. d7 {[%clk 0:05:19]}  Qc6+ {[%clk 0:01:02]} 51. Kh3 {[%clk 0:05:19]} 1-0


[Site "http://www.Chess.com"]

[Event "FIDE World Rapid Chess Championship 2021"]
[White "Jobava, Baadur"]
[Black "Gukesh, D"]
[WhiteFideId "13601520"]
[BlackFideId "46616543"]
[WhiteElo "2679"]
[BlackElo "2050"]
[Result "0-1"]
[Round "11"]
[TimeControl "900+10"]
[Date "2021.12.28"]
[WhiteClock "0:00:54"]
[BlackClock "0:00:26"]

1. d4 {[%clk 0:15:00]}  Nf6 {[%clk 0:15:00]} 2. c4 {[%clk 0:15:00]}  e6 {[%clk 0:15:00]} 3. Nc3 {[%clk 0:15:00]}  Bb4 {[%clk 0:15:00]} 4. e3 {[%clk 0:15:00]}  O-O {[%clk 0:15:00]} 5. Bd3 {[%clk 0:15:00]}  c5 {[%clk 0:14:37]} 6. Ne2 {[%clk 0:15:45]}  d5 {[%clk 0:14:37]} 7. cxd5 {[%clk 0:15:45]}  cxd4 {[%clk 0:14:37]} 8. exd4 {[%clk 0:15:45]}  Nxd5 {[%clk 0:14:37]} 9. O-O {[%clk 0:15:45]}  Nc6 {[%clk 0:14:37]} 10. Qc2 {[%clk 0:15:45]}  h6 {[%clk 0:14:37]} 11. Bh7+ {[%clk 0:15:45]}  Kh8 {[%clk 0:14:37]} 12. Be4 {[%clk 0:15:45]}  Nce7 {[%clk 0:14:12]} 13. Rd1 {[%clk 0:15:24]}  Bd7 {[%clk 0:14:12]} 14. Qb3 {[%clk 0:14:11]}  Bc6 {[%clk 0:12:41]} 15. Nxd5 {[%clk 0:10:13]}  Nxd5 {[%clk 0:11:55]} 16. Qh3 {[%clk 0:07:46]}  Nf4 {[%clk 0:10:51]} 17. Nxf4 {[%clk 0:07:46]}  Bxe4 {[%clk 0:10:51]} 18. Nh5 {[%clk 0:06:29]}  Bf5 {[%clk 0:09:43]} 19. g4 {[%clk 0:06:35]}  Bc2 {[%clk 0:07:06]} 20. Bf4 {[%clk 0:06:35]}  Bxd1 {[%clk 0:07:14]} 21. Rxd1 {[%clk 0:04:03]}  Bd6 {[%clk 0:05:59]} 22. Bd2 {[%clk 0:04:03]}  Kg8 {[%clk 0:05:59]} 23. Nxg7 {[%clk 0:04:03]}  Kxg7 {[%clk 0:05:59]} 24. Qxh6+ {[%clk 0:04:03]}  Kg8 {[%clk 0:05:59]} 25. Re1 {[%clk 0:01:28]}  Re8 {[%clk 0:04:53]} 26. Bg5 {[%clk 0:00:45]}  Bf8 {[%clk 0:03:00]} 27. Qh4 {[%clk 0:00:45]}  Be7 {[%clk 0:00:43]} 28. Re5 {[%clk 0:00:28]}  Bxg5 {[%clk 0:00:43]} 29. Rxg5+ {[%clk 0:00:28]}  Kf8 {[%clk 0:00:43]} 30. d5 {[%clk 0:00:28]}  Ke7 {[%clk 0:00:43]} 31. Rg7+ {[%clk 0:00:28]}  Kd7 {[%clk 0:00:43]} 32. Rxf7+ {[%clk 0:00:28]}  Kc8 {[%clk 0:00:43]} 33. Qg3 {[%clk 0:00:25]}  Re7 {[%clk 0:00:03]} 34. Qc3+ {[%clk 0:00:25]}  Rc7 {[%clk 0:00:03]} 35. Rxc7+ {[%clk 0:00:25]}  Qxc7 {[%clk 0:00:03]} 36. dxe6 {[%clk 0:00:25]}  Qxc3 {[%clk 0:00:03]} 37. bxc3 {[%clk 0:00:25]}  Kd8 {[%clk 0:00:03]} 38. f4 {[%clk 0:00:25]}  Ke7 {[%clk 0:00:03]} 39. f5 {[%clk 0:00:25]}  Rc8 {[%clk 0:00:03]} 40. Kg2 {[%clk 0:00:25]}  Rxc3 {[%clk 0:00:03]} 41. h4 {[%clk 0:00:25]}  b5 {[%clk 0:00:03]} 42. h5 {[%clk 0:00:25]}  b4 {[%clk 0:00:03]} 43. h6 {[%clk 0:00:25]}  Kf6 {[%clk 0:00:03]} 44. h7 {[%clk 0:00:25]}  Rc8 {[%clk 0:00:03]} 45. Kf3 {[%clk 0:00:25]}  Ke5 {[%clk 0:00:26]} 46. e7 {[%clk 0:00:54]}  a5 {[%clk 0:00:26]} 47. Kg3 {[%clk 0:00:54]}  a4 {[%clk 0:00:26]} 48. Kh4 {[%clk 0:00:54]}  b3 {[%clk 0:00:26]} 49. axb3 {[%clk 0:00:54]}  axb3 {[%clk 0:00:26]} 50. Kg5 {[%clk 0:00:54]}  b2 {[%clk 0:00:26]} 51. f6 {[%clk 0:00:54]}  Ke6 {[%clk 0:00:26]} 52. Kh6 {[%clk 0:00:54]}  b1=Q {[%clk 0:00:26]} 0-1


[Site "http://www.Chess.com"]

[Event "FIDE World Rapid Chess Championship 2021"]
[White "Cheparinov, Ivan"]
[Black "Firouzja, Alireza"]
[WhiteFideId "2905540"]
[BlackFideId "12573981"]
[WhiteElo "2621"]
[BlackElo "2656"]
[Result "1/2-1/2"]
[Round "11"]
[TimeControl "900+10"]
[Date "2021.12.28"]
[WhiteClock "0:07:03"]
[BlackClock "0:01:26"]

1. d4 {[%clk 0:15:00]}  Nf6 {[%clk 0:15:00]} 2. c4 {[%clk 0:15:00]}  g6 {[%clk 0:15:00]} 3. Nc3 {[%clk 0:15:00]}  Bg7 {[%clk 0:15:00]} 4. e4 {[%clk 0:15:00]}  d6 {[%clk 0:15:00]} 5. Nf3 {[%clk 0:15:00]}  O-O {[%clk 0:15:00]} 6. Be2 {[%clk 0:15:00]}  e5 {[%clk 0:15:00]} 7. O-O {[%clk 0:15:00]}  Na6 {[%clk 0:14:57]} 8. Re1 {[%clk 0:16:10]}  c6 {[%clk 0:14:57]} 9. Be3 {[%clk 0:16:10]}  Qe7 {[%clk 0:14:57]} 10. c5 {[%clk 0:16:10]}  dxc5 {[%clk 0:14:34]} 11. dxe5 {[%clk 0:16:14]}  Ng4 {[%clk 0:14:34]} 12. Bg5 {[%clk 0:16:14]}  Qe8 {[%clk 0:14:34]} 13. Bxa6 {[%clk 0:16:30]}  bxa6 {[%clk 0:08:18]} 14. Na4 {[%clk 0:16:30]}  Nxe5 {[%clk 0:08:18]} 15. Nxc5 {[%clk 0:16:30]}  Nxf3+ {[%clk 0:08:18]} 16. Qxf3 {[%clk 0:16:30]}  Qe5 {[%clk 0:08:18]} 17. Be3 {[%clk 0:13:47]}  Qxb2 {[%clk 0:08:10]} 18. a4 {[%clk 0:13:47]}  Qxa1 {[%clk 0:08:10]} 19. Rxa1 {[%clk 0:13:47]}  Bxa1 {[%clk 0:08:10]} 20. h4 {[%clk 0:13:35]}  h5 {[%clk 0:06:20]} 21. Qd1 {[%clk 0:13:35]}  Be5 {[%clk 0:06:20]} 22. Qc1 {[%clk 0:13:35]}  Rd8 {[%clk 0:06:20]} 23. Bf4 {[%clk 0:12:28]}  Bg7 {[%clk 0:05:33]} 24. Bh6 {[%clk 0:12:28]}  Bh8 {[%clk 0:05:33]} 25. Bg5 {[%clk 0:12:28]}  Re8 {[%clk 0:05:33]} 26. Bd2 {[%clk 0:12:28]}  Be6 {[%clk 0:05:48]} 27. Bc3 {[%clk 0:10:21]}  Bxc3 {[%clk 0:05:48]} 28. Qxc3 {[%clk 0:10:21]}  Rab8 {[%clk 0:05:48]} 29. Kh2 {[%clk 0:10:21]}  Rb1 {[%clk 0:04:01]} 30. Kg3 {[%clk 0:10:39]}  Bc8 {[%clk 0:04:01]} 31. f3 {[%clk 0:10:39]}  Rd1 {[%clk 0:04:01]} 32. Kf4 {[%clk 0:10:30]}  Rd6 {[%clk 0:02:23]} 33. Qa5 {[%clk 0:10:30]}  Re7 {[%clk 0:02:23]} 34. Qb4 {[%clk 0:10:30]}  f6 {[%clk 0:02:23]} 35. Nb7 {[%clk 0:09:16]}  Rdd7 {[%clk 0:01:59]} 36. Nc5 {[%clk 0:09:16]}  Rd8 {[%clk 0:01:59]} 37. Nxa6 {[%clk 0:09:16]}  Kf7 {[%clk 0:01:59]} 38. Nc5 {[%clk 0:09:16]}  Kg7 {[%clk 0:01:59]} 39. Qc3 {[%clk 0:07:03]}  Kf7 {[%clk 0:01:26]} 40. Qb4 {[%clk 0:07:03]}  Kg7 {[%clk 0:01:26]} 41. Qc3 {[%clk 0:07:03]}  Kf7 {[%clk 0:01:26]} 1/2-1/2


[Site "http://www.Chess.com"]

[Event "FIDE World Rapid Chess Championship 2021"]
[White "Niemann, Hans Moke"]
[Black "Salem, A.R. Saleh"]
[WhiteFideId "2093596"]
[BlackFideId "9301348"]
[WhiteElo "2327"]
[BlackElo "2729"]
[Result "0-1"]
[Round "11"]
[TimeControl "900+10"]
[Date "2021.12.28"]
[WhiteClock "0:02:46"]
[BlackClock "0:00:23"]

1. e4 {[%clk 0:15:00]}  c5 {[%clk 0:15:00]} 2. Nf3 {[%clk 0:15:00]}  Nc6 {[%clk 0:15:00]} 3. d4 {[%clk 0:15:00]}  cxd4 {[%clk 0:15:00]} 4. Nxd4 {[%clk 0:15:00]}  Nf6 {[%clk 0:15:00]} 5. Nc3 {[%clk 0:15:00]}  e5 {[%clk 0:15:00]} 6. Ndb5 {[%clk 0:15:00]}  d6 {[%clk 0:15:00]} 7. Nd5 {[%clk 0:15:00]}  Nxd5 {[%clk 0:15:00]} 8. exd5 {[%clk 0:15:00]}  Nb8 {[%clk 0:15:00]} 9. a4 {[%clk 0:16:16]}  Be7 {[%clk 0:16:16]} 10. Be2 {[%clk 0:16:16]}  O-O {[%clk 0:16:16]} 11. O-O {[%clk 0:16:16]}  Nd7 {[%clk 0:16:16]} 12. Bd2 {[%clk 0:16:16]}  a6 {[%clk 0:16:16]} 13. Na3 {[%clk 0:16:16]}  a5 {[%clk 0:16:16]} 14. Nc4 {[%clk 0:16:16]}  b6 {[%clk 0:16:16]} 15. f4 {[%clk 0:16:16]}  exf4 {[%clk 0:16:16]} 16. Bxf4 {[%clk 0:16:16]}  Nc5 {[%clk 0:16:16]} 17. c3 {[%clk 0:16:16]}  f5 {[%clk 0:16:16]} 18. Be3 {[%clk 0:16:16]}  Ba6 {[%clk 0:16:03]} 19. Qc2 {[%clk 0:15:25]}  Bg5 {[%clk 0:16:03]} 20. Bd4 {[%clk 0:14:52]}  g6 {[%clk 0:16:03]} 21. b4 {[%clk 0:14:35]}  Bxc4 {[%clk 0:11:35]} 22. Bxc4 {[%clk 0:14:35]}  Nd7 {[%clk 0:11:35]} 23. Bb5 {[%clk 0:14:35]}  Bf6 {[%clk 0:11:35]} 24. Bf2 {[%clk 0:13:08]}  Rc8 {[%clk 0:11:18]} 25. Bc6 {[%clk 0:10:21]}  Ne5 {[%clk 0:11:18]} 26. b5 {[%clk 0:10:21]}  Ng4 {[%clk 0:11:18]} 27. Rae1 {[%clk 0:10:21]}  Be5 {[%clk 0:11:18]} 28. h3 {[%clk 0:09:29]}  Nxf2 {[%clk 0:10:45]} 29. Qxf2 {[%clk 0:09:29]}  Bxc3 {[%clk 0:10:45]} 30. Re6 {[%clk 0:09:29]}  Bb4 {[%clk 0:10:45]} 31. Kh1 {[%clk 0:08:46]}  f4 {[%clk 0:09:14]} 32. Re4 {[%clk 0:08:46]}  Bc5 {[%clk 0:09:14]} 33. Qe2 {[%clk 0:08:46]}  Qg5 {[%clk 0:07:50]} 34. Re7 {[%clk 0:07:40]}  Be3 {[%clk 0:05:44]} 35. Re6 {[%clk 0:07:29]}  Rc7 {[%clk 0:05:44]} 36. Qg4 {[%clk 0:07:22]}  Qxg4 {[%clk 0:03:09]} 37. hxg4 {[%clk 0:07:22]}  Bc5 {[%clk 0:03:09]} 38. Kh2 {[%clk 0:07:22]}  g5 {[%clk 0:03:09]} 39. Rf3 {[%clk 0:07:22]}  Rcf7 {[%clk 0:03:09]} 40. Be8 {[%clk 0:06:08]}  Rf6 {[%clk 0:02:36]} 41. Bh5 {[%clk 0:06:08]}  Bd4 {[%clk 0:02:36]} 42. Rd3 {[%clk 0:05:06]}  Be5 {[%clk 0:01:44]} 43. Kg1 {[%clk 0:05:06]}  Rc8 {[%clk 0:01:44]} 44. Rd1 {[%clk 0:05:06]}  Kf8 {[%clk 0:01:44]} 45. Kf2 {[%clk 0:05:06]}  Rc2+ {[%clk 0:01:44]} 46. Kf3 {[%clk 0:05:06]}  Rc3+ {[%clk 0:01:44]} 47. Kf2 {[%clk 0:05:06]}  Rxe6 {[%clk 0:01:44]} 48. dxe6 {[%clk 0:05:06]}  Ke7 {[%clk 0:01:50]} 49. Bf7 {[%clk 0:04:23]}  h6 {[%clk 0:01:50]} 50. Rh1 {[%clk 0:04:23]}  Rc2+ {[%clk 0:01:50]} 51. Kf3 {[%clk 0:04:23]}  d5 {[%clk 0:01:50]} 52. Rd1 {[%clk 0:04:23]}  Rc3+ {[%clk 0:01:50]} 53. Ke2 {[%clk 0:04:23]}  d4 {[%clk 0:01:50]} 54. Rh1 {[%clk 0:04:23]}  Re3+ {[%clk 0:01:50]} 55. Kd2 {[%clk 0:04:23]}  Bd6 {[%clk 0:01:50]} 56. Bg6 {[%clk 0:04:23]}  Bb4+ {[%clk 0:01:50]} 57. Kc2 {[%clk 0:04:23]}  Rc3+ {[%clk 0:01:50]} 58. Kb2 {[%clk 0:04:23]}  Ba3+ {[%clk 0:01:50]} 59. Ka2 {[%clk 0:04:23]}  Kxe6 {[%clk 0:00:58]} 60. Rxh6 {[%clk 0:05:05]}  Bc5 {[%clk 0:00:58]} 61. Be4+ {[%clk 0:05:05]}  Ke5 {[%clk 0:00:58]} 62. Bf3 {[%clk 0:05:05]}  d3 {[%clk 0:00:58]} 63. Rg6 {[%clk 0:05:05]}  Kd4 {[%clk 0:00:58]} 64. Rxg5 {[%clk 0:05:05]}  Kc4 {[%clk 0:00:17]} 65. Rf5 {[%clk 0:04:25]}  Ra3+ {[%clk 0:00:17]} 66. Kb2 {[%clk 0:04:25]}  Rb3+ {[%clk 0:00:17]} 67. Ka2 {[%clk 0:04:25]}  Kc3 {[%clk 0:00:17]} 68. Rxc5+ {[%clk 0:04:25]}  bxc5 {[%clk 0:00:17]} 69. g5 {[%clk 0:04:25]}  Rb2+ {[%clk 0:00:23]} 70. Ka1 {[%clk 0:02:46]}  Rf2 {[%clk 0:00:23]} 71. b6 {[%clk 0:02:46]}  Rxf3 {[%clk 0:00:23]} 0-1


[Site "http://www.Chess.com"]